bitfinex-derivatives/quotes_BTCF0:USTF0_20241109
["timestamp","ask_amount","ask_price","bid_price","bid_amount"]
[1731138778772,0.065325,76484.0,76483.0,0.065324]
[1731138778967,0.065325,76484.0,76483.0,0.2212931]
[1731138779164,0.426122,76488.0,76487.0,0.065321]
[1731138779476,0.426122,76488.0,76487.0,0.2212901]
[1731138780564,0.426122,76488.0,76487.0,0.14866278]
[1731138780769,0.426122,76488.0,76487.0,0.2212901]
[1731138781071,0.426122,76488.0,76487.0,0.28663398]
[1731138781267,0.426122,76488.0,76487.0,0.28668741]
[1731138781782,0.426122,76488.0,76487.0,0.2032922]
[1731138782076,0.426122,76488.0,76487.0,0.13794832]
[1731138782670,0.426122,76488.0,76487.0,0.2032922]
[1731138782874,0.426122,76488.0,76487.0,0.1379712]
[1731138783172,0.3608,76488.0,76487.0,0.07262732]
[1731138783368,0.42612,76488.0,76487.0,0.13653267]
[1731138784670,0.42612,76488.0,76487.0,0.06390535]
[1731138784874,0.3608,76488.0,76486.0,0.06534388]
[1731138785173,0.42612,76488.0,76487.0,0.06534388]
[1731138785364,0.42612,76488.0,76487.0,0.14904377]
[1731138785564,0.42612,76488.0,76487.0,0.22167109]
[1731138787474,0.42612,76488.0,76487.0,0.1379712]
[1731138787777,0.42612,76488.0,76487.0,0.07262732]
[1731138789177,0.42612,76488.0,76487.0,0.1379712]
[1731138789476,0.42612,76488.0,76487.0,0.07262732]
[1731138796983,0.42612,76488.0,76487.0,0.1379712]
[1731138798780,0.42612,76488.0,76487.0,0.22166594]
[1731138799289,0.42612,76488.0,76487.0,0.15632206]
[1731138802582,0.42612,76488.0,76487.0,0.08369474]
[1731138803182,0.42612,76488.0,76487.0,0.06534626]
[1731138803479,0.065321,76487.0,76486.0,0.06534626]
[1731138803674,0.065321,76487.0,76486.0,0.14911064]
[1731138804075,0.065321,76487.0,76486.0,0.14911231]
[1731138804282,0.065321,76487.0,76486.0,0.08376438]
[1731138804493,0.065321,76487.0,76486.0,0.14911302]
[1731138804680,0.065321,76487.0,76486.0,0.08376438]
[1731138805193,0.065322,76486.0,76485.0,0.1350013]
[1731138805387,0.065322,76486.0,76485.0,0.28411072]
[1731138805588,0.065322,76486.0,76485.0,0.21876073]
[1731138805981,0.065322,76486.0,76485.0,0.28411255]
[1731138806182,0.065322,76486.0,76485.0,0.21876073]
[1731138806584,0.065322,76486.0,76485.0,0.29138805]
[1731138806787,0.065322,76486.0,76485.0,0.14613341]
[1731138806992,0.065322,76486.0,76485.0,0.35671105]
[1731138809992,0.065322,76486.0,76485.0,0.38681105]
[1731138811489,0.065322,76486.0,76485.0,0.46523356]
[1731138811692,0.065322,76486.0,76485.0,0.38681105]
[1731138812081,0.065322,76486.0,76485.0,0.48647794]
[1731138812682,0.065322,76490.0,76489.0,0.065318]
[1731138812884,0.065322,76490.0,76489.0,0.22170475]
[1731138817297,0.065322,76490.0,76489.0,0.22231253]
[1731138818992,0.3608,76499.0,76489.0,0.22231253]
[1731138818993,0.423633,76499.0,76493.0,0.065316]
[1731138819193,0.423633,76499.0,76498.0,0.1248782]
[1731138819404,0.423633,76499.0,76498.0,0.07262732]
[1731138820388,0.423633,76499.0,76498.0,0.12486681]
[1731138821396,0.423633,76499.0,76498.0,0.12485837]
[1731138822000,0.423633,76499.0,76498.0,0.07262732]
[1731138822294,0.423633,76499.0,76498.0,0.12485837]
[1731138823589,0.423633,76499.0,76498.0,0.19748569]
[1731138823800,0.423633,76499.0,76498.0,0.14525464]
[1731138824187,0.423633,76499.0,76498.0,0.21056664]
[1731138824892,0.358322,76499.0,76498.0,0.27367887]
[1731138825096,0.358322,76499.0,76498.0,0.28184852]
[1731138825288,0.065308,76503.0,76498.0,0.28184852]
[1731138825289,0.065308,76503.0,76498.0,0.36579105]
[1731138825489,0.065308,76503.0,76502.0,0.13793532]
[1731138825695,0.065308,76503.0,76502.0,0.14610497]
[1731138826295,0.00196141,76504.0,76503.0,0.065307]
[1731138826495,0.00196141,76504.0,76503.0,0.07347665]
[1731138827200,0.00196141,76504.0,76503.0,0.13873106]
[1731138827389,0.00196141,76504.0,76503.0,0.07347665]
[1731138827594,0.065298,76514.0,76512.0,0.0653]
[1731138827791,0.065298,76514.0,76513.0,0.13295409]
[1731138827997,0.065298,76514.0,76513.0,0.14609597]
[1731138829403,0.065298,76514.0,76513.0,0.21872329]
[1731138829705,0.065298,76514.0,76513.0,0.14609597]
[1731138830901,0.065298,76514.0,76513.0,0.2098171]
[1731138831307,0.065298,76514.0,76513.0,0.07189078]
[1731138831504,0.065298,76514.0,76513.0,0.1445181]
[1731138832007,0.426096,76518.0,76517.0,0.065295]
[1731138832209,0.426096,76518.0,76517.0,0.13792232]
[1731138832403,0.3608,76518.0,76515.0,0.07262732]
[1731138832600,0.065296,76516.0,76515.0,0.07262732]
[1731138833003,0.065296,76516.0,76515.0,0.11168317]
[1731138833314,0.065296,76516.0,76515.0,0.07262732]
[1731138834098,0.065296,76516.0,76515.0,0.13792432]
[1731138834300,0.065296,76516.0,76515.0,0.21055164]
[1731138835003,0.065296,76516.0,76515.0,0.24960749]
[1731138835207,0.065296,76516.0,76515.0,0.21055164]
[1731138835802,0.065296,76516.0,76515.0,0.24960749]
[1731138836108,0.065296,76516.0,76515.0,0.21055164]
[1731138836408,0.065296,76516.0,76515.0,0.24960749]
[1731138836903,0.065296,76516.0,76515.0,0.21055164]
[1731138838900,0.065296,76516.0,76515.0,0.13792432]
[1731138840412,0.065296,76516.0,76515.0,0.065297]
[1731138840605,0.065296,76516.0,76515.0,0.13792432]
[1731138840799,0.065296,76516.0,76515.0,0.21055164]
[1731138841313,0.065296,76516.0,76515.0,0.24956886]
[1731138841512,0.065296,76516.0,76515.0,0.21055164]
[1731138846106,0.065296,76516.0,76515.0,0.24957074]
[1731138846413,0.065296,76516.0,76515.0,0.25775416]
[1731138846614,0.065296,76516.0,76515.0,0.21873506]
[1731138847210,0.065289,76524.0,76522.0,0.065291]
[1731138847411,0.065289,76524.0,76523.0,0.21872334]
[1731138847617,0.065289,76524.0,76523.0,0.18513668]
[1731138847807,0.065286,76528.0,76525.0,0.065288]
[1731138848006,0.065286,76528.0,76527.0,0.07262732]
[1731138848215,0.065286,76528.0,76527.0,0.08080602]
[1731138849315,0.065286,76528.0,76527.0,0.14609302]
[1731138850607,0.065286,76528.0,76527.0,0.08076925]
[1731138850911,0.065286,76528.0,76527.0,0.14264001]
[1731138853209,0.065286,76528.0,76527.0,0.19469423]
[1731138853418,0.065286,76528.0,76527.0,0.14264001]
[1731138854117,0.065286,76528.0,76527.0,0.06187076]
[1731138854118,0.13791332,76528.0,76527.0,0.06187076]
[1731138854417,0.065289,76524.0,76521.0,0.03906618]
[1731138854716,0.065292,76521.0,76520.0,0.03906618]
[1731138854905,0.065292,76521.0,76520.0,0.11983736]
[1731138855107,0.065292,76521.0,76520.0,0.07262732]
[1731138858621,0.065292,76521.0,76520.0,0.12468154]
[1731138861518,0.065292,76521.0,76520.0,0.07262732]
[1731138864129,0.065292,76521.0,76520.0,0.12480471]
[1731138864321,0.065292,76521.0,76520.0,0.07262732]
[1731138875835,0.065293,76520.0,76519.0,0.13049162]
[1731138876020,0.065293,76520.0,76519.0,0.28635017]
[1731138876337,0.065293,76520.0,76519.0,0.22111283]
[1731138881135,0.065293,76520.0,76519.0,0.22112374]
[1731138885338,0.3608,76522.0,76521.0,0.065292]
[1731138885339,0.426092,76522.0,76521.0,0.065292]
[1731138885539,0.426092,76522.0,76521.0,0.14849542]
[1731138886033,0.426092,76522.0,76521.0,0.1484794]
[1731138890542,0.426092,76522.0,76521.0,0.14847171]
[1731138891140,0.3608,76529.0,76521.0,0.22109903]
[1731138891442,0.0061,76534.0,76528.0,0.14525464]
[1731138891640,0.36460036,76537.0,76528.0,0.14525464]
[1731138891641,0.065283,76533.0,76532.0,0.13054213]
[1731138891941,0.065283,76533.0,76532.0,0.21372184]
[1731138892137,0.065283,76533.0,76532.0,0.14846171]
[1731138892338,0.065283,76533.0,76532.0,0.14784486]
[1731138893346,0.065283,76533.0,76532.0,0.13050762]
[1731138893846,0.36276036,76537.0,76532.0,0.13785294]
[1731138894043,0.36276036,76537.0,76536.0,0.13790632]
[1731138894233,0.36276036,76537.0,76533.0,0.06522562]
[1731138894545,0.065281,76534.0,76533.0,0.06528]
[1731138896653,0.065281,76534.0,76533.0,0.13790732]
[1731138899037,0.065281,76534.0,76533.0,0.06528]
[1731138899243,0.065281,76534.0,76533.0,0.13790732]
[1731138900337,0.065281,76534.0,76533.0,0.07262732]
[1731138901549,0.065281,76534.0,76533.0,0.12475593]
[1731138901947,0.065281,76534.0,76533.0,0.05212861]
[1731138902651,0.065282,76533.0,76532.0,0.07262732]
[1731138904440,0.065282,76533.0,76532.0,0.05212411]
[1731138904742,0.065282,76533.0,76532.0,0.07262732]
[1731138906057,0.065282,76533.0,76532.0,0.12475143]
[1731138908251,0.065282,76533.0,76532.0,0.05212411]
[1731138908449,0.065282,76533.0,76532.0,0.12475143]
[1731138909449,0.065282,76533.0,76532.0,0.12476082]
[1731138911156,0.065282,76533.0,76532.0,0.0521335]
[1731138911349,0.065282,76533.0,76532.0,0.12476082]
[1731138911545,0.065282,76533.0,76532.0,0.07262732]
[1731138911745,0.065282,76533.0,76532.0,0.12477189]
[1731138912458,0.065282,76533.0,76532.0,0.07262732]
[1731138916962,0.065282,76533.0,76532.0,0.12480299]
[1731138917153,0.065282,76533.0,76532.0,0.07262732]
[1731138917655,0.065282,76533.0,76532.0,0.08076365]
[1731138918657,0.065282,76533.0,76532.0,0.07262732]
[1731138919457,0.065282,76533.0,76532.0,0.13785294]
[1731138920467,0.065282,76533.0,76532.0,0.15551259]
[1731138922762,0.065282,76533.0,76532.0,0.16367411]
[1731138924854,0.065282,76533.0,76532.0,0.09104679]
[1731138926461,0.065282,76533.0,76532.0,0.09103876]
[1731138926861,0.065282,76533.0,76532.0,0.09110236]
[1731138927264,0.065282,76533.0,76532.0,0.00815349]
[1731138928979,0.065288,76526.0,76525.0,1e-06]
[1731138929273,0.426088,76526.0,76525.0,0.03919557]
[1731138929468,0.426088,76526.0,76525.0,1e-06]
[1731138929469,0.89075532,76526.0,76525.0,1e-06]
[1731138929670,0.49871532,76526.0,76525.0,1e-06]
[1731138929869,0.89075532,76526.0,76525.0,1e-06]
[1731138930168,0.49871532,76526.0,76525.0,1e-06]
[1731138930574,0.89075532,76526.0,76525.0,1e-06]
[1731138931068,0.49871532,76526.0,76525.0,1e-06]
[1731138933773,0.426088,76526.0,76525.0,1e-06]
[1731138935676,0.522288,76526.0,76525.0,1e-06]
[1731138937778,0.522288,76526.0,76525.0,0.06187536]
[1731138937985,0.522288,76526.0,76525.0,1e-06]
[1731138939281,0.522288,76526.0,76525.0,0.07262832]
[1731138939991,0.426088,76526.0,76525.0,0.07262832]
[1731138941489,0.426088,76526.0,76525.0,0.13674288]
[1731138945694,0.426088,76526.0,76525.0,0.06411556]
[1731138945893,0.426088,76526.0,76525.0,0.13674288]
[1731138949095,0.426088,76526.0,76525.0,0.13674188]
[1731138952805,0.426088,76526.0,76525.0,0.17584589]
[1731138953097,0.426088,76526.0,76525.0,0.2746582]
[1731138953298,0.426088,76526.0,76525.0,0.25428645]
[1731138953693,0.426088,76526.0,76525.0,0.26248266]
[1731138954501,0.426088,76526.0,76525.0,0.21022709]
[1731138956192,0.065288,76526.0,76525.0,0.21022709]
[1731138956699,0.065288,76526.0,76525.0,0.29282986]
[1731138956895,0.065288,76526.0,76525.0,0.36545718]
[1731138957292,0.065286,76529.0,76528.0,0.065285]
[1731138957501,0.065286,76529.0,76528.0,0.07348121]
[1731138957695,0.3608,76532.0,76528.0,0.15345085]
[1731138957897,0.065284,76532.0,76531.0,0.065283]
[1731138958093,0.065284,76532.0,76531.0,0.07347921]
[1731138961995,0.065284,76532.0,76531.0,0.00819621]
[1731138962194,0.065284,76532.0,76531.0,0.08082353]
[1731138963400,0.065284,76532.0,76531.0,0.07262732]
[1731138965098,0.065284,76532.0,76531.0,0.08080575]
[1731138965799,0.065284,76532.0,76531.0,0.14608875]
[1731138966403,0.065284,76532.0,76531.0,0.19821484]
[1731138966909,0.065284,76532.0,76531.0,0.14608875]
[1731138967104,0.065284,76532.0,76531.0,0.08080575]
[1731138968605,0.065284,76532.0,76531.0,0.00817843]
[1731138969001,0.065284,76532.0,76531.0,0.08080575]
[1731138970201,0.065284,76532.0,76531.0,0.13293254]
[1731138970604,0.065284,76532.0,76531.0,0.13292404]
[1731138971614,0.065284,76532.0,76531.0,0.08079725]
[1731138972814,0.065284,76532.0,76531.0,0.00816993]
[1731138973419,0.065283,76531.0,76530.0,0.07262732]
[1731138974509,0.065283,76531.0,76530.0,0.08080038]
[1731138975020,0.426083,76531.0,76530.0,0.08080038]
[1731138978317,0.426083,76531.0,76530.0,0.13291696]
[1731138979719,0.426083,76531.0,76530.0,0.08077877]
[1731138981921,0.426083,76531.0,76530.0,0.08078407]
[1731138984725,0.426083,76531.0,76530.0,0.00815675]
[1731138984912,0.426083,76531.0,76530.0,0.08078407]
[1731138985708,0.426083,76531.0,76530.0,0.00815675]
[1731138986022,0.426083,76531.0,76530.0,0.08078407]
[1731138986320,0.426083,76531.0,76530.0,0.07262732]
[1731138986917,0.426083,76531.0,76528.0,0.06516834]
[1731138986918,0.3608,76531.0,76528.0,0.06516834]
[1731138987119,0.426083,76531.0,76530.0,0.07262732]
[1731138988820,0.065288,76526.0,76525.0,0.1292829]
[1731138989019,0.065288,76526.0,76525.0,0.20191022]
[1731138989524,0.065288,76526.0,76525.0,0.28549108]
[1731138989716,0.065288,76526.0,76525.0,0.20191022]
[1731138989912,0.065288,76526.0,76525.0,0.22024383]
[1731138990217,0.065288,76526.0,76525.0,0.28550129]
[1731138990723,0.065288,76526.0,76525.0,0.22024383]
[1731138991121,0.065288,76526.0,76525.0,0.14761651]
[1731138991311,0.065288,76526.0,76525.0,0.22024383]
[1731138992827,0.065288,76526.0,76525.0,0.22025485]
[1731138993026,0.065288,76526.0,76525.0,0.28554385]
[1731138993420,0.065288,76526.0,76525.0,0.29369691]
[1731138995518,0.065288,76526.0,76525.0,0.44456257]
[1731138995725,0.065288,76526.0,76525.0,0.36632423]
[1731138996124,0.065288,76526.0,76525.0,0.44463676]
[1731138996330,0.065288,76526.0,76525.0,0.44465335]
[1731138997429,0.065288,76526.0,76525.0,0.44430634]
[1731138998630,0.065285,76530.0,76529.0,0.065285]
[1731138998824,0.065285,76530.0,76529.0,0.30187525]
[1731138999940,0.065285,76530.0,76529.0,0.30191991]
[1731139001542,0.3608,76534.0,76529.0,0.30926223]
[1731139001838,0.065277,76539.0,76533.0,0.07262732]
[1731139002035,0.065277,76539.0,76538.0,0.07262732]
[1731139002227,0.065277,76539.0,76538.0,0.16354651]
[1731139002637,0.065277,76539.0,76538.0,0.22882451]
[1731139003838,0.065277,76539.0,76538.0,0.2206102]
[1731139004029,0.065277,76539.0,76538.0,0.22878837]
[1731139004426,0.065277,76539.0,76538.0,0.29397491]
[1731139004623,0.065277,76539.0,76538.0,0.14608349]
[1731139005336,0.065277,76539.0,76538.0,0.21127003]
[1731139005531,0.065277,76539.0,76538.0,0.14608349]
[1731139006937,0.065277,76539.0,76538.0,0.2104879]
[1731139007128,0.065277,76539.0,76538.0,0.20230973]
[1731139007336,0.065277,76539.0,76538.0,0.2104878]
[1731139008430,0.00196025,76542.0,76538.0,0.1452098]
[1731139008629,0.00196025,76542.0,76541.0,0.13790232]
[1731139008839,0.06723425,76542.0,76541.0,0.14608039]
[1731139009033,0.06723425,76542.0,76541.0,0.07345307]
[1731139009544,0.06723425,76542.0,76541.0,0.14608039]
[1731139010237,0.06723425,76542.0,76541.0,0.07345307]
[1731139010539,0.00196025,76542.0,76541.0,0.14608039]
[1731139010738,0.00196025,76542.0,76541.0,0.14605277]
[1731139011929,0.00196025,76542.0,76541.0,0.17895277]
[1731139012329,0.00196025,76542.0,76541.0,0.32635121]
[1731139012636,0.00196025,76542.0,76541.0,0.17895277]
[1731139013035,0.00196025,76542.0,76541.0,0.23915277]
[1731139013933,0.3608,76544.0,76541.0,0.17387777]
[1731139014134,0.3608,76544.0,76543.0,0.13790032]
[1731139014333,0.06527,76547.0,76546.0,0.065271]
[1731139014537,0.06527,76547.0,76546.0,0.12548428]
[1731139014738,0.06527,76547.0,76546.0,0.1254415]
[1731139015637,0.06527,76547.0,76546.0,0.11733383]
[1731139017337,0.06527,76547.0,76546.0,0.065271]
[1731139018945,0.06527,76547.0,76546.0,0.1297018]
[1731139019650,0.06527,76547.0,76546.0,0.13781056]
[1731139020548,0.06527,76547.0,76546.0,0.1297018]
[1731139023656,0.06527,76547.0,76546.0,0.18176463]
[1731139023845,0.06527,76547.0,76546.0,0.1297018]
[1731139024554,0.06527,76547.0,76546.0,0.18988653]
[1731139024749,0.06527,76547.0,76546.0,0.12461553]
[1731139024955,0.06527,76547.0,76546.0,0.18912095]
[1731139025158,0.06527,76547.0,76546.0,0.19724233]
[1731139025453,0.06527,76547.0,76546.0,0.17324233]
[1731139025658,0.06527,76547.0,76546.0,0.10061501]
[1731139026453,0.06527,76547.0,76546.0,0.08760557]
[1731139026663,0.06527,76547.0,76546.0,0.08761084]
[1731139026850,0.42607,76547.0,76546.0,0.04855218]
[1731139027251,0.42607,76547.0,76546.0,0.0404308]
[1731139027457,0.3608,76547.0,76545.0,0.03905866]
[1731139027763,0.065271,76546.0,76545.0,0.03905866]
[1731139028261,0.065271,76546.0,76545.0,0.11168598]
[1731139029757,0.13789832,76546.0,76545.0,0.03908418]
[1731139029949,0.065272,76544.0,76543.0,0.06455099]
[1731139030149,0.23393832,76546.0,76542.0,0.03908793]
[1731139030354,0.23393832,76546.0,76541.0,0.1098655]
[1731139030355,0.065274,76542.0,76541.0,0.1098655]
[1731139030549,0.065274,76542.0,76541.0,0.1037655]
[1731139030759,0.065274,76542.0,76541.0,0.17639282]
[1731139031464,0.065274,76542.0,76541.0,0.13730489]
[1731139032964,0.065274,76542.0,76541.0,0.18937318]
[1731139033462,0.065274,76542.0,76541.0,0.13730489]
[1731139036060,0.065274,76542.0,76541.0,0.18937318]
[1731139036260,0.065274,76542.0,76541.0,0.20993221]
[1731139039456,0.065274,76542.0,76541.0,0.06467757]
[1731139039656,0.3608,76547.0,76541.0,0.07262732]
[1731139039857,0.42607,76547.0,76546.0,0.07262732]
[1731139040264,0.42607,76547.0,76546.0,0.04862732]
[1731139040470,0.065272,76544.0,76543.0,0.05210949]
[1731139040658,0.065272,76544.0,76543.0,0.12473681]
[1731139041959,0.065272,76544.0,76543.0,0.07262732]
[1731139042267,0.065277,76539.0,76538.0,0.07515343]
[1731139042469,0.065277,76539.0,76538.0,0.06295343]
[1731139042663,0.3608,76547.0,76537.0,0.06518654]
[1731139042860,0.42607,76547.0,76546.0,0.07262732]
[1731139044765,0.42607,76547.0,76546.0,0.06388396]
[1731139044959,0.42607,76547.0,76546.0,0.07262732]
[1731139048064,0.42607,76547.0,76544.0,0.1157079]
[1731139048065,0.065272,76545.0,76544.0,0.1157079]
[1731139048260,0.065272,76545.0,76544.0,0.07262732]
[1731139048677,0.065272,76545.0,76544.0,0.12475329]
[1731139049374,0.065272,76545.0,76544.0,0.05212597]
[1731139049672,0.065272,76545.0,76544.0,0.12475329]
[1731139050966,0.065272,76545.0,76544.0,0.07262732]
[1731139055369,0.065272,76545.0,76541.0,0.06518654]
[1731139055370,0.065274,76542.0,76541.0,0.13781386]
[1731139055575,0.065274,76542.0,76541.0,0.22041079]
[1731139056282,0.065274,76542.0,76541.0,0.15522425]
[1731139063177,0.065274,76542.0,76541.0,0.22049925]
[1731139064887,0.065274,76542.0,76541.0,0.29881178]
[1731139065682,0.065274,76542.0,76541.0,0.22049925]
[1731139072299,0.0061,76555.0,76541.0,0.65952347]
[1731139072495,0.0325,76558.0,76552.0,0.07262732]
[1731139072695,0.3608,76559.0,76557.0,0.13778814]
[1731139072992,0.3608,76559.0,76558.0,0.14704724]
[1731139073298,0.3608,76559.0,76557.0,0.07262732]
[1731139074805,0.3608,76559.0,76557.0,0.13631984]
[1731139075101,0.065257,76562.0,76557.0,0.13631984]
[1731139075309,0.065257,76562.0,76558.0,0.05205381]
[1731139075509,0.065257,76562.0,76559.0,0.05205381]
[1731139076216,0.065257,76562.0,76558.0,0.05205381]
[1731139077003,0.00195977,76563.0,76558.0,0.05205381]
[1731139077301,0.00195977,76563.0,76562.0,0.03902669]
[1731139078808,0.00195977,76563.0,76561.0,0.11165401]
[1731139080307,0.065257,76562.0,76561.0,0.03902669]
[1731139080711,0.07262732,76562.0,76559.0,0.03902669]
[1731139080909,0.065259,76560.0,76558.0,0.03902669]
[1731139081111,0.065259,76560.0,76559.0,0.03902669]
[1731139081609,0.065259,76560.0,76557.0,0.11574633]
[1731139081801,0.065259,76560.0,76557.0,0.05205381]
[1731139082001,0.065259,76560.0,76556.0,0.05205381]
[1731139082199,0.065259,76560.0,76555.0,0.05205381]
[1731139082702,0.065259,76560.0,76559.0,0.03901655]
[1731139083304,0.07262732,76562.0,76559.0,0.03901656]
[1731139083515,0.065259,76560.0,76559.0,0.03901656]
[1731139085010,0.3608,76586.0,76572.0,0.065249]
[1731139085205,0.065243,76579.0,76572.0,0.43342732]
[1731139085404,0.065243,76579.0,76578.0,0.07262732]
[1731139085709,0.065243,76579.0,76576.0,0.07262732]
[1731139085909,0.065243,76579.0,76577.0,0.065244]
[1731139086410,0.065243,76579.0,76576.0,0.07262732]
[1731139086616,0.065243,76579.0,76576.0,0.13787232]
[1731139087115,0.09588,76581.0,76576.0,0.07262732]
[1731139087303,0.065244,76577.0,76576.0,0.07262732]
[1731139087804,0.065244,76577.0,76574.0,0.065247]
[1731139088004,0.065244,76577.0,76576.0,0.07262732]
[1731139089111,0.065244,76577.0,76576.0,0.04862732]
[1731139097913,0.3608,76579.0,76578.0,0.065243]
[1731139099119,0.426043,76579.0,76578.0,0.065243]
[1731139099914,0.3608,76579.0,76578.0,0.065243]
[1731139100315,0.426043,76579.0,76578.0,0.065243]
[1731139101409,0.426043,76579.0,76578.0,0.041243]
[1731139103914,0.426043,76579.0,76578.0,0.08021319]
[1731139105010,0.426043,76579.0,76578.0,0.041243]
[1731139105415,0.426043,76579.0,76578.0,0.11387032]
[1731139108521,0.065243,76579.0,76578.0,0.11387032]
[1731139110517,0.065243,76579.0,76578.0,0.041243]
[1731139110919,0.065243,76579.0,76578.0,0.11387032]
[1731139111328,0.3608,76585.0,76578.0,0.05198555]
[1731139111517,0.065239,76583.0,76582.0,0.11161649]
[1731139111915,0.065239,76583.0,76582.0,0.07262732]
[1731139113328,0.065243,76579.0,76578.0,0.05198555]
[1731139113523,0.3608,76585.0,76575.0,0.15135464]
[1731139113524,0.065245,76577.0,76575.0,0.15135464]
[1731139113718,0.065245,76577.0,76575.0,0.07262732]
[1731139114630,0.065245,76577.0,76575.0,0.13762208]
[1731139114925,0.3608,76585.0,76575.0,0.06499476]
[1731139115127,0.3608,76585.0,76582.0,0.12472948]
[1731139115319,0.065239,76583.0,76582.0,0.12472948]
[1731139115725,0.065239,76583.0,76582.0,0.07262732]
[1731139116319,0.3608,76585.0,76581.0,0.05210216]
[1731139116519,0.06524,76582.0,76581.0,0.05210216]
[1731139116722,0.06524,76582.0,76581.0,0.12472948]
[1731139118830,0.06524,76582.0,76581.0,0.07262732]
[1731139119415,0.06524,76582.0,76581.0,0.12472948]
[1731139120730,0.06524,76582.0,76581.0,0.19025922]
[1731139121632,0.06524,76582.0,76581.0,0.13815706]
[1731139128137,0.06524,76582.0,76581.0,0.06552974]
[1731139128328,0.06524,76582.0,76581.0,0.07262732]
[1731139130629,0.06524,76582.0,76581.0,0.20286308]
[1731139131033,0.06524,76582.0,76581.0,0.28398745]
[1731139131334,0.06524,76582.0,76581.0,0.17886308]
[1731139132237,0.06524,76582.0,76581.0,0.11362208]
[1731139132437,0.06524,76582.0,76581.0,0.06499476]
[1731139132626,0.06524,76582.0,76581.0,0.13762208]
[1731139133130,0.06524,76582.0,76581.0,0.13786832]
[1731139135337,0.06524,76582.0,76581.0,0.07262732]
[1731139135540,0.06524,76582.0,76581.0,0.13786832]
[1731139135836,0.06524,76582.0,76581.0,0.20286308]
[1731139136036,0.06524,76582.0,76581.0,0.21888735]
[1731139136837,0.06524,76582.0,76581.0,0.29151467]
[1731139137139,0.06524,76582.0,76581.0,0.21888735]
[1731139137627,0.06524,76582.0,76581.0,0.2188308]
[1731139141245,0.06524,76582.0,76581.0,0.21881767]
[1731139141740,0.06524,76582.0,76581.0,0.28394901]
[1731139143439,0.06524,76582.0,76581.0,0.15357667]
[1731139144234,0.06524,76582.0,76581.0,0.21881767]
[1731139144642,0.06524,76582.0,76581.0,0.20299366]
[1731139146244,0.06524,76582.0,76581.0,0.13786832]
[1731139146449,0.06524,76582.0,76581.0,0.11386832]
[1731139146761,0.065241,76581.0,76580.0,0.09515706]
[1731139147938,0.065241,76581.0,76580.0,0.16778438]
[1731139150539,0.065241,76581.0,76580.0,0.25005347]
[1731139150744,0.065241,76581.0,76580.0,0.17742615]
[1731139150950,0.065241,76581.0,76580.0,0.18492813]
[1731139155246,0.065241,76581.0,76580.0,0.1849452]
[1731139160945,0.065241,76581.0,76580.0,0.10265904]
[1731139161350,0.065241,76581.0,76580.0,0.07865904]
[1731139161550,0.065241,76581.0,76580.0,0.16097857]
[1731139161949,0.065241,76581.0,76580.0,0.07865904]
[1731139163157,0.065241,76581.0,76580.0,0.16099084]
[1731139163358,0.065241,76581.0,76580.0,0.07865904]
[1731139163855,0.065241,76581.0,76580.0,0.07262732]
[1731139165852,0.065242,76580.0,76579.0,0.07799371]
[1731139166053,0.065242,76580.0,76579.0,0.15062103]
[1731139167246,0.065242,76580.0,76579.0,0.18065279]
[1731139167757,0.065242,76580.0,76579.0,0.10265908]
[1731139168258,0.065242,76580.0,76579.0,0.1852431]
[1731139168961,0.065242,76580.0,76579.0,0.15521134]
[1731139169155,0.065242,76580.0,76579.0,0.08258402]
[1731139169354,0.065242,76580.0,76579.0,0.15521134]
[1731139173257,0.065242,76580.0,76579.0,0.22045434]
[1731139175264,0.065242,76580.0,76579.0,0.29308166]
[1731139175654,0.065242,76580.0,76579.0,0.22045434]
[1731139176476,0.065242,76580.0,76579.0,0.19645434]
[1731139184574,0.065242,76580.0,76579.0,0.13787032]
[1731139186677,0.065242,76580.0,76579.0,0.21610481]
[1731139189480,0.065242,76580.0,76579.0,0.15086181]
[1731139191584,0.065242,76580.0,76579.0,0.20911911]
[1731139192677,0.065242,76580.0,76579.0,0.27436211]
[1731139193386,0.065242,76580.0,76579.0,0.27431791]
[1731139195779,0.065242,76580.0,76579.0,0.22569059]
[1731139195982,0.065242,76580.0,76579.0,0.29831791]
[1731139196694,0.065242,76580.0,76579.0,0.22008342]
[1731139197392,0.065242,76580.0,76579.0,0.29830817]
[1731139198997,0.065242,76580.0,76579.0,0.21999882]
[1731139199384,0.065242,76580.0,76579.0,0.29820827]
[1731139200291,0.065242,76580.0,76579.0,0.065243]
[1731139200997,0.065242,76580.0,76579.0,0.22556441]
[1731139201189,0.3608,76585.0,76579.0,0.45284177]
[1731139201392,0.065238,76584.0,76583.0,0.13033771]
[1731139201693,0.065238,76584.0,76583.0,0.4230197]
[1731139203894,0.065238,76584.0,76583.0,0.5664022]
[1731139204796,0.065238,76584.0,76583.0,0.4230197]
[1731139205006,0.065238,76584.0,76583.0,0.5746205]
[1731139205298,0.065238,76584.0,76583.0,0.7180094]
[1731139205591,0.065238,76584.0,76583.0,0.4230197]
[1731139206497,0.065238,76584.0,76583.0,0.3990197]
[1731139208293,0.3608,76587.0,76583.0,0.3990197]
[1731139208497,0.3608,76587.0,76584.0,0.32514364]
[1731139208691,0.3608,76587.0,76585.0,0.45549934]
[1731139208892,0.426036,76587.0,76586.0,0.32456293]
[1731139209092,0.426036,76587.0,76586.0,0.47728303]
[1731139209986,0.426036,76587.0,76586.0,0.45494784]
[1731139210303,0.426036,76587.0,76586.0,0.47727354]
[1731139210598,0.065236,76587.0,76586.0,0.47727354]
[1731139212499,0.065236,76587.0,76586.0,0.47681493]
[1731139213091,0.36075265,76594.0,76586.0,0.54205193]
[1731139213406,0.065231,76593.0,76592.0,0.13033537]
[1731139213701,0.065231,76593.0,76592.0,0.32410432]
[1731139214601,0.065231,76593.0,76592.0,0.38823432]
[1731139216192,0.36075265,76594.0,76592.0,0.38823432]
[1731139216402,0.42598265,76594.0,76593.0,0.4210242]
[1731139216595,0.42598265,76594.0,76593.0,0.55825197]
[1731139217302,0.42598265,76594.0,76593.0,0.35612039]
[1731139217801,0.42598265,76594.0,76593.0,0.36656039]
[1731139218391,0.42598265,76594.0,76593.0,0.37700039]
[1731139221513,0.42598265,76594.0,76593.0,1.165664]
[1731139221696,0.42598265,76594.0,76593.0,0.97217798]